fUST/lending_fUST_20260302
["ID","MTS","AMOUNT","RATE_DAILY","PERIOD"]
[406983876,1772415039743,-500.0,0.0002388,2]
[406983877,1772415039752,-500.0,0.0002388,2]
[406983880,1772415039762,-500.0,0.0002388,2]
[406983882,1772415039772,-500.0,0.0002388,2]
[406983884,1772415039781,-500.0,0.0002388,2]
[406983886,1772415039790,-500.0,0.0002388,2]
[406983888,1772415039799,-500.0,0.0002388,2]
[406983890,1772415039809,-500.0,0.0002388,2]
[406983892,1772415039818,-500.0,0.0002388,2]
[406983894,1772415039827,-500.0,0.0002388,2]
[406983896,1772415039840,-500.0,0.0002388,2]
[406983898,1772415039849,-450.00000001,0.0002388,2]
[406983900,1772415039858,-500.0,0.0002388,2]
[406983902,1772415039867,-500.0,0.0002388,2]
[406983904,1772415039877,-3000.0,0.00023898,2]
[406983906,1772415039887,-500.0,0.00023898,2]
[406983908,1772415039896,-1221.05,0.0002399,2]
[406983910,1772415039905,-3000.0,0.00024,2]
[406983913,1772415039914,-2745.62996394,0.00024,30]
[406983915,1772415039923,-259.0,0.00024061,2]
[406983917,1772415039932,-259.0,0.00024066,2]
[406983919,1772415039942,-259.0,0.00024071,2]
[406983921,1772415039951,-2579.17784983,0.00024111,2]
[406983923,1772415039960,-152.2532246,0.00024166,79]
[406983925,1772415039970,-181.54177257,0.00024172,2]
[406983927,1772415039979,-500.0,0.0002423,2]
[406983929,1772415039988,-196.14027141,0.0002423,2]
[406983931,1772415039998,-6342.78042307,0.00024231,2]
[406983933,1772415040007,-306.7748502,0.00024297,2]
[406983935,1772415040016,-171.0,0.00024384,13]
[406983937,1772415040025,-658.6436689,0.00024402,2]
[406983939,1772415040034,-3000.0,0.000245,2]
[406983941,1772415040043,-200.0,0.00024545,120]
[406983943,1772415040053,-309.0,0.00024574,2]
[406983945,1772415040062,-800.0,0.00024582,2]
[406983947,1772415040071,-150.0,0.00024603,2]
[406983949,1772415040080,-150.0,0.00024603,2]
[406983951,1772415040090,-800.0,0.00024607,2]
[406983953,1772415040099,-800.0,0.00024612,2]
[406983955,1772415040108,-800.0,0.00024621,2]
[406983957,1772415040118,-734.49377055,0.0002463,2]
[406983959,1772415040126,-150.0,0.00024658,2]
[406983961,1772415040136,-150.0,0.00024658,2]
[406983963,1772415040145,-193.96881003,0.00024658,2]
[406983965,1772415040155,-150.0,0.00024658,2]
[406983967,1772415040164,-460.54902583,0.00024659,2]
[406983969,1772415040173,-259.0,0.00024669,2]
[406983971,1772415040184,-800.0,0.00024669,2]
[406983973,1772415040194,-259.0,0.00024695,2]
[406983975,1772415040203,-800.0,0.00024703,2]
[406983977,1772415040212,-150.0,0.00024713,2]
[406983979,1772415040222,-150.0,0.00024713,2]
[406983981,1772415040231,-564.76397426,0.00024713,2]
[406983983,1772415040240,-295.6752046,0.00024713,2]
[406983985,1772415040249,-1016.57515368,0.00024713,2]
[406983987,1772415040258,-532.21536829,0.00024713,2]
[406983989,1772415040268,-191.7169492,0.00024713,2]
[406983991,1772415040277,-1807.24471765,0.00024713,2]
[406983993,1772415040286,-618.96459895,0.00024713,2]
[406983995,1772415040296,-800.0,0.00024747,2]
[406983997,1772415040305,-800.0,0.00024748,2]
[406983999,1772415040318,-800.0,0.00024755,2]
[406984001,1772415040327,-184.25309926,0.00024767,2]
[406984003,1772415040336,-150.0,0.00024768,2]
[406984005,1772415040346,-800.0,0.00024779,2]
[406984007,1772415040356,-200.0,0.00024781,120]
[406984009,1772415040367,-1171207.95291269,0.000248,2]
[406984012,1772415040381,-82472.34945649,0.000248,2]
[406984043,1772415040682,-392.0,0.0002388,10]
[406984045,1772415040692,-1198.0,0.0002388,10]
[406984047,1772415040702,-1175.0,0.0002388,10]
[406984049,1772415040711,-1275.16243769,0.00023968,2]
[406984051,1772415040721,-16178.79915509,0.000248,2]
[406984085,1772415043197,-1000.0,0.00024767,30]
[406984086,1772415043207,-185.424,0.00024767,30]
[406984087,1772415043217,-14840.75226969,0.000248,2]
[406984088,1772415043229,-2455.38369134,0.000248,2]
[406984089,1772415043241,-8114.28443661,0.000248,2]
[406984090,1772415043252,-4175.9349,0.000248,2]
[406984097,1772415046159,-441.90482517,0.00024402,2]
[406984098,1772415046169,-1275.16243769,0.0002474,2]
[406984099,1772415046179,-331992.78378386,0.000248,2]
[406984100,1772415046190,-569.37999998,0.000248,2]
[406984101,1772415046205,-8422.52356332,0.000248,2]
[406984102,1772415046220,-11709.55348668,0.000248,2]
[406984103,1772415046231,-4132.80713712,0.000248,2]
[406984104,1772415046248,-9718.81736236,0.000248,2]
[406984105,1772415046457,-11119.3811304,0.000248,2]
[406984106,1772415046468,-885.58255189,0.000248,2]
[406984128,1772415485578,202.21,0.000158,120]
[406984415,1772416232056,-162.0,0.00016,14]
[406984417,1772416232066,-150.91598115,0.00017808,2]
[406984418,1772416232075,-180.22657617,0.00019587,5]
[406984452,1772416238345,-881.0,0.00019587,5]
[406984454,1772416238354,-294.0,0.00019587,5]
[406984456,1772416238363,-853.0,0.00019587,5]
[406984458,1772416238372,-200.0,0.00020179,2]
[406984460,1772416238381,-200.0,0.00020861,3]
[406984462,1772416238391,-200.0,0.00021567,3]
[406984464,1772416238400,-199.960078,0.0002195,30]
[406984466,1772416238409,-250.0,0.00022,2]
[406984468,1772416238420,-744.97886799,0.00022033,2]
[406984470,1772416238429,-215.03851711,0.00022219,6]
[406984472,1772416238439,-200.0,0.00022297,4]
[406984474,1772416238448,-2820.99605145,0.00022303,2]
[406984476,1772416238457,-945.21449408,0.00022303,2]
[406984478,1772416238467,-256.99530299,0.00022472,2]
[406984481,1772416238478,-1200.53579184,0.00022472,2]
[406984483,1772416238487,-205.02415626,0.00022472,2]
[406985266,1772416246236,-640.0,0.00022472,10]
[406985268,1772416246246,-661.0,0.00022472,10]
[406985270,1772416246255,-211.19715612,0.00022472,2]
[406985272,1772416246265,-280.41140149,0.000226,7]
[406985274,1772416246275,-3000.0,0.00022785,2]
[406985276,1772416246284,-200.0,0.00023052,4]
[406985278,1772416246293,-481.5223964,0.00023105,2]
[406985280,1772416246302,-259.43498663,0.00023149,2]
[406985282,1772416246311,-607.7830632,0.00023409,2]
[406985284,1772416246320,-151.0,0.00023616,2]
[406985286,1772416246330,-151.0,0.00023616,2]
[406985288,1772416246339,-151.0,0.00023616,2]
[406985290,1772416246348,-151.0,0.00023616,2]
[406985292,1772416246357,-151.0,0.00023616,2]
[406985294,1772416246367,-151.0,0.00023616,2]
[406985296,1772416246377,-2398.4119403,0.00023616,2]
[406985298,1772416246386,-155.50646069,0.00023616,2]
[406985300,1772416246395,-200.0,0.00023832,5]
[406985302,1772416246404,-150.23107884,0.0002399,2]
[406985304,1772416246413,-168.0,0.00023993,2]
[406985306,1772416246422,-661.25447707,0.00024,2]
[406985922,1772416805959,174.47,9.5e-05,2]
[406985923,1772416843606,-423.59543408,0.00010374,2]
[406985924,1772416843634,-565.0,0.00010374,2]
[406985925,1772416843662,-378.66214114,0.00010479,2]
[406985926,1772416843675,-423.59543408,0.00010479,2]
[406985927,1772416843686,-565.0,0.00010479,2]
[406985928,1772416843697,-101.89787342,0.00010479,2]
[406985929,1772416843707,-174.47,0.000105,2]
[406985930,1772416843718,-150.0,0.00010693,2]
[406985931,1772416843727,-516.93283612,0.000108,2]
[406985932,1772416843737,-500.0,0.000108,2]
[406985933,1772416843747,-25.8547391,0.000108,2]
[406985937,1772417074094,475.7,0.0001001,2]
[406985978,1772417432284,-689.39149541,0.00010167,2]
[406985981,1772417432296,-608.1914688,0.00010167,2]
[406985983,1772417432306,-562.0,0.00010167,2]
[406985985,1772417432315,-1255.61683448,0.0001027,2]
[406986355,1772417440696,-845.15949572,0.0001027,2]
[406986370,1772417443379,-391.53494979,0.0001027,2]
[406986371,1772417443391,-70.90547151,0.0001027,2]
[406986372,1772417443400,-150.0,0.00010427,2]
[406986373,1772417443410,-500.0,0.000108,2]
[406986374,1772417443419,-500.0,0.000108,2]
[406986375,1772417443429,-650.66805046,0.000108,2]
[406986376,1772417443439,-200.0,0.00011027,2]
[406986377,1772417443448,-177.0,0.00012427,2]
[406986378,1772417443458,-635.66279551,0.00013699,2]
[406986379,1772417443467,-461.44698252,0.00014175,2]
[406986380,1772417443479,-2015.8821381,0.00014175,2]
[406986381,1772417443498,-953.32991928,0.00014175,2]
[406986386,1772417446408,-312.51532484,0.00014175,2]
[406986387,1772417446464,-1248.04594163,0.00014175,2]
[406986388,1772417446474,-204.0,0.00014427,2]
[406986389,1772417446484,-78.89666265,0.00015,2]
[406986390,1772417446495,-421.10333735,0.00015,2]
[406986391,1772417446507,-1249.43497224,0.000157,2]
[406986392,1772417446517,-916.99279422,0.000158,2]
[406986393,1772417446527,-156.17937153,0.000158,2]
[406986394,1772417446536,-1249.43497224,0.00015913,4]
[406986395,1772417446546,-1249.43497224,0.00016126,6]
[406986396,1772417446555,-916.99279422,0.00016156,5]
[406986397,1772417446564,-1249.43497224,0.00016339,8]
[406986398,1772417446574,-150.0,0.00016427,2]
[406986399,1772417446583,-916.99279422,0.00016512,9]
[406986400,1772417446593,-1249.43497224,0.00016551,10]
[406986401,1772417446603,-3026.8001326,0.00016639,2]
[406986402,1772417446632,-800.0,0.00016639,2]
[406986403,1772417446677,-1792.50697597,0.00016639,2]
[406986635,1772417750698,10000.0,0.0001001,2]
[406986636,1772417756958,1064.0,0.0001001,2]
[406986690,1772418079812,3696.0,0.000158,120]
[406986730,1772418632421,-480.43172694,0.00013706,2]
[406986734,1772418632475,-1828.21906776,0.00013706,2]
[406986735,1772418632487,-150.0,0.0001409,2]
[406986736,1772418632497,-200.0,0.00014283,2]
[406986737,1772418632507,-151.25,0.000143,2]
[406986738,1772418632515,-421.5707415,0.00014339,2]
[406986739,1772418632525,-1981.9679826,0.00014339,2]
[406986740,1772418632535,-587.0,0.00015828,2]
[406986741,1772418632544,-300.0,0.00015829,2]
[406986742,1772418632554,-300.0,0.00015829,2]
[406986744,1772418632563,-300.0,0.00015829,2]
[406986746,1772418632572,-284.0,0.00015829,2]
[406986748,1772418632582,-2797.02397288,0.0001583,2]
[406986788,1772418638634,-3956.22721422,0.0001583,2]
[406986790,1772418638644,-1544.5551719,0.00015904,2]
[406986792,1772418638653,-204.0,0.0001609,2]
[406986794,1772418638662,-1981.9679826,0.00016218,2]
[406986796,1772418638672,-421.5707415,0.00016231,2]
[406986799,1772418638682,-707.62124339,0.00016605,2]
[406986800,1772418638691,-3971.82766769,0.00016639,2]
[406986802,1772418638700,-1249.43497224,0.00016764,13]
[406986805,1772418638709,-1006.32,0.000168,3]
[406986807,1772418638719,-916.99279422,0.00016868,13]
[406986809,1772418638728,-1249.43497224,0.00016977,15]
[406986811,1772418638737,-326.2612307,0.0001699,2]
[406986813,1772418638747,-850.74991233,0.00017,2]
[406986815,1772418638757,-796.9765236,0.00017176,2]
[406986817,1772418638766,-1249.43497224,0.0001719,17]
[406986819,1772418638775,-916.99279422,0.00017225,16]
[406986821,1772418638784,-156.17937153,0.00017276,17]
[406986823,1772418638793,-1249.43497224,0.00017403,19]
[406986825,1772418638802,-267.24071634,0.00017487,2]
[406986826,1772418638811,-862.79561354,0.00017487,2]
[406986828,1772418638821,-916.99279422,0.00017581,20]
[406986831,1772418638831,-1249.43497224,0.00017615,21]
[406986833,1772418638841,-1249.43497224,0.00017828,24]
[406986835,1772418638850,-245.62699315,0.00017869,2]
[406986837,1772418638859,-500.0,0.00017869,2]
[406986839,1772418638869,-500.0,0.00017869,2]
[406986841,1772418638878,-258.21773378,0.00017869,2]
[406986843,1772418638887,-500.0,0.00017869,2]
[406986844,1772418638897,-7982.55461537,0.0001787,2]
[406986847,1772418638916,-637.83722774,0.0001787,2]
[406987115,1772418643659,-1422.53660905,0.0001787,2]
[406987116,1772418643669,-916.99279422,0.00017937,24]
[406987118,1772418643679,-1167.62714218,0.00017999,2]
[406987119,1772418643688,-580.81072804,0.00017999,2]
[406987121,1772418643697,-940.35325898,0.00018,2]
[406987122,1772418643708,-1275.38190145,0.00018,2]
[406987123,1772418643719,-5218.02070153,0.00018,2]
[406987124,1772418643730,-1739.52419855,0.00018,2]
[406987126,1772418643769,-16564.0200162,0.00018,2]
[406987146,1772418646669,-8199.38133468,0.00018,2]
[406987147,1772418646681,-129029.14946157,0.00018,2]
[406987148,1772418646937,-8610.99485752,0.00018,2]
[406987297,1772419374481,-345.09050857,0.00016366,2]
[406987298,1772419374504,-612.88074321,0.00016366,2]
[406987299,1772419374526,-42.02874822,0.00016395,2]
[406987300,1772419375965,-107.97125178,0.00016395,2]
[406987301,1772419375989,-292.0,0.00016424,2]
[406987302,1772419376033,-600.02874822,0.00016425,2]
[406987303,1772419377141,-1000.0,0.00016425,2]
[406987304,1772419378226,-1000.0,0.00016425,2]
[406987305,1772419379241,-1000.0,0.00016425,2]
[406987306,1772419379697,-1000.0,0.00016425,2]
[406987307,1772419380016,-399.97125178,0.00016425,2]
[406987308,1772419380038,-168.733,0.00016425,2]
[406987309,1772419380059,-200.0,0.00016466,2]
[406987310,1772419380082,-231.29574822,0.00016591,2]
[406987311,1772419380376,-1000.0,0.00016591,2]
[406987312,1772419380729,-1000.0,0.00016591,2]
[406987313,1772419381871,-391.61146299,0.00016591,2]
[406987314,1772419381894,-608.38853701,0.00017224,2]
[406987315,1772419383234,-1000.0,0.00017224,2]
[406987316,1772419384254,-370.31749292,0.00017224,2]
[406987317,1772419384279,-629.68250708,0.00017227,2]
[406987318,1772419385300,-484.45377103,0.00017227,2]
[406987319,1772419385324,-515.54622897,0.000178,2]
[406987320,1772419386739,-1000.0,0.000178,2]
[406987321,1772419388004,-1000.0,0.000178,2]
[406987322,1772419389249,-675.72377103,0.000178,2]
[406987323,1772419389273,-324.27622897,0.00017869,2]
[406987324,1772419390423,-175.72377103,0.00017869,2]
[406987325,1772419390444,-633.09,0.00017869,2]
[406987326,1772419390467,-191.18622897,0.00017869,2]
[406987327,1772419391487,-308.81377103,0.00017869,2]
[406987328,1772419391510,-691.18622897,0.00017869,2]
[406987405,1772419831640,-384.768375,0.00016162,2]
[406987412,1772419831692,-336.40741345,0.00016162,2]
[406987536,1772419837808,-315.23003086,0.00016162,2]
[406987801,1772419840456,-290.03458117,0.00016162,2]
[406988029,1772419842837,-329.43,0.00016162,2]
[406988036,1772419842886,-840.20940277,0.00016162,2]
[406988121,1772419845892,-2503.92019675,0.00016162,2]
[406988122,1772419845901,-152.93965601,0.00016358,2]
[406988123,1772419845911,-500.0,0.00016489,2]
[406988124,1772419845921,-648.5,0.00016489,2]
[406988125,1772419845931,-500.0,0.00016489,2]
[406988126,1772419845940,-646.51,0.00016489,2]
[406988127,1772419845950,-500.0,0.0001649,2]
[406988128,1772419845960,-500.0,0.0001649,2]
[406988129,1772419845969,-500.0,0.0001649,2]
[406988130,1772419845979,-502.89444839,0.0001649,2]
[406988131,1772419845988,-599.53,0.0001649,2]
[406988132,1772419845997,-565.39556259,0.0001649,2]
[406988133,1772419846007,-526.43,0.0001649,2]
[406988134,1772419846017,-1021.53,0.0001649,2]
[406988135,1772419846027,-500.0,0.0001649,2]
[406988136,1772419846039,-500.0,0.0001649,2]
[406988137,1772419846048,-935.09,0.0001649,2]
[406988138,1772419846059,-461.30678883,0.0001649,2]
[406988139,1772419846070,-500.0,0.0001649,2]
[406988140,1772419846079,-98.36901554,0.0001649,2]
[406988141,1772419846091,-408.59396308,0.0001649,2]
[406988142,1772419846101,-1117.15,0.0001649,2]
[406988143,1772419846111,-500.0,0.0001649,2]
[406988144,1772419846121,-500.0,0.0001649,2]
[406988145,1772419846130,-500.0,0.0001649,2]
[406988146,1772419846140,-526.42,0.0001649,2]
[406988147,1772419846150,-500.0,0.0001649,2]
[406988148,1772419846159,-1588.66,0.0001649,2]
[406988149,1772419846168,-2781.70405534,0.0001649,2]
[406988248,1772421005870,159.77,9.5e-05,2]
[406988249,1772421006314,159.77,9.7e-05,2]
[406988250,1772421006746,159.77,9.8e-05,2]
[406988251,1772421007154,159.77,0.0001,2]
[406988281,1772421031856,-159.77,0.000101,2]
[406988283,1772421031865,-159.77,0.000103,2]
[406988285,1772421031874,-114.90183182,0.000105,2]
[406988287,1772421031885,-44.86816818,0.000105,2]
[406988289,1772421031894,-5000.0,0.00011417,2]
[406988291,1772421031903,-2858.3177484,0.00011532,2]
[406988293,1772421031911,-1200.0,0.00011647,2]
[406988295,1772421031920,-5000.0,0.00011648,2]
[406988297,1772421031929,-150.0,0.00011707,2]
[406988299,1772421031938,-300.0,0.00011765,2]
[406988301,1772421031947,-300.0,0.00011765,2]
[406988303,1772421031956,-300.0,0.00011765,2]
[406988305,1772421031964,-300.0,0.00011765,2]
[406988307,1772421031973,-300.0,0.00011765,2]
[406988309,1772421031983,-18939.30435419,0.00012621,2]
[406988311,1772421031992,-547.81575446,0.00012621,2]
[406988313,1772421032001,-500.0,0.00012621,2]
[406988315,1772421032009,-500.0,0.00012621,2]
[406988317,1772421032018,-604.56038786,0.00012621,2]
[406988319,1772421032027,-604.56038786,0.00012621,2]
[406988321,1772421032036,-604.56038786,0.00012621,2]
[406988323,1772421032044,-604.56038786,0.00012621,2]
[406988325,1772421032054,-604.56038786,0.00012621,2]
[406988327,1772421032063,-604.56038786,0.00012621,2]
[406988329,1772421032072,-604.56038786,0.00012621,2]
[406988331,1772421032081,-604.56038786,0.00012621,2]
[406988333,1772421032089,-604.56038786,0.00012621,2]
[406988335,1772421032098,-604.56038786,0.00012621,2]
[406988337,1772421032107,-604.56038786,0.00012621,2]
[406988339,1772421032116,-604.56038786,0.00012621,2]
[406988341,1772421032129,-604.56038786,0.00012621,2]
[406988343,1772421032138,-604.56038786,0.00012621,2]
[406988345,1772421032147,-604.56038786,0.00012621,2]
[406988347,1772421032155,-604.56038786,0.00012621,2]
[406988349,1772421032164,-604.56038786,0.00012621,2]
[406988351,1772421032174,-604.56038786,0.00012621,2]
[406988353,1772421032182,-604.56038786,0.00012621,2]
[406988354,1772421032193,-604.56038786,0.00012621,2]
[406988356,1772421032202,-604.56038786,0.00012621,2]
[406988358,1772421032212,-604.56038786,0.00012621,2]
[406988360,1772421032221,-604.56038786,0.00012621,2]
[406988362,1772421032230,-604.56038786,0.00012621,2]
[406988364,1772421032240,-604.56038786,0.00012621,2]
[406988366,1772421032249,-604.56038786,0.00012621,2]
[406988368,1772421032257,-604.56038786,0.00012621,2]
[406988370,1772421032266,-604.56038786,0.00012621,2]
[406988372,1772421032276,-604.56038786,0.00012621,2]
[406988374,1772421032284,-604.56038786,0.00012621,2]
[406988376,1772421032293,-604.56038786,0.00012621,2]
[406988378,1772421032302,-604.56038786,0.00012621,2]
[406988380,1772421032313,-604.56038786,0.00012621,2]
[406988382,1772421032322,-604.56038786,0.00012621,2]
[406988384,1772421032331,-604.56038786,0.00012621,2]
[406988386,1772421032340,-604.56038786,0.00012621,2]
[406988388,1772421032349,-604.56038786,0.00012621,2]
[406988390,1772421032358,-604.56038786,0.00012621,2]
[406988393,1772421032369,-604.56038786,0.00012621,2]
[406988395,1772421032378,-604.56038786,0.00012621,2]
[406988397,1772421032387,-604.56038786,0.00012621,2]
[406988399,1772421032395,-604.56038786,0.00012621,2]
[406988401,1772421032404,-604.56038786,0.00012621,2]
[406988402,1772421032414,-604.56038786,0.00012621,2]
[406988404,1772421032423,-604.56038786,0.00012621,2]
[406988407,1772421032432,-604.56038786,0.00012621,2]
[406988409,1772421032442,-604.56038786,0.00012621,2]
[406988411,1772421032451,-604.56038786,0.00012621,2]
[406988413,1772421032460,-604.56038786,0.00012621,2]
[406988415,1772421032468,-604.56038786,0.00012621,2]
[406988417,1772421032477,-604.56038786,0.00012621,2]
[406988419,1772421032485,-604.56038786,0.00012621,2]
[406988421,1772421032494,-604.56038786,0.00012621,2]
[406988423,1772421032504,-604.56038786,0.00012621,2]
[406988425,1772421032512,-604.56038786,0.00012621,2]
[406988427,1772421032521,-604.56038786,0.00012621,2]
[406988429,1772421032530,-604.56038786,0.00012621,2]
[406988431,1772421032545,-604.56038786,0.00012621,2]
[406988433,1772421032553,-604.56038786,0.00012621,2]
[406988435,1772421032562,-604.56038786,0.00012621,2]
[406988437,1772421032570,-604.56038786,0.00012621,2]
[406988439,1772421032579,-500.0,0.00012621,2]
[406988441,1772421032587,-500.0,0.00012621,2]
[406988443,1772421032596,-500.0,0.00012621,2]
[406988445,1772421032605,-500.0,0.00012621,2]
[406988447,1772421032614,-500.0,0.00012621,2]
[406988449,1772421032623,-500.0,0.00012621,2]
[406988451,1772421032631,-500.0,0.00012621,2]
[406988453,1772421032640,-500.0,0.00012621,2]
[406988455,1772421032648,-500.0,0.00012621,2]
[406988457,1772421032657,-500.0,0.00012621,2]
[406988459,1772421032665,-500.0,0.00012621,2]
[406988461,1772421032674,-500.0,0.00012621,2]
[406988463,1772421032683,-500.0,0.00012621,2]
[406988465,1772421032691,-500.0,0.00012621,2]
[406988467,1772421032700,-500.0,0.00012621,2]
[406988468,1772421032708,-500.0,0.00012621,2]
[406988470,1772421032718,-500.0,0.00012621,2]
[406988472,1772421032727,-500.0,0.00012621,2]
[406988474,1772421032735,-500.0,0.00012621,2]
[406988476,1772421032744,-500.0,0.00012621,2]
[406988478,1772421032753,-500.0,0.00012621,2]
[406988480,1772421032762,-500.0,0.00012621,2]
[406988482,1772421032770,-500.0,0.00012621,2]
[406988483,1772421032779,-500.0,0.00012621,2]
[406988485,1772421032787,-500.0,0.00012621,2]
[406988487,1772421032797,-500.0,0.00012621,2]
[406988489,1772421032805,-500.0,0.00012621,2]
[406988491,1772421032814,-500.0,0.00012621,2]
[406988492,1772421032823,-500.0,0.00012621,2]
[406988494,1772421032832,-360.15186286,0.00012621,2]
[406988495,1772421032841,-500.0,0.00012621,2]
[406988496,1772421032850,-500.0,0.00012621,2]
[406988498,1772421032859,-500.0,0.00012621,2]
[406988500,1772421032868,-500.0,0.00012621,2]
[406988501,1772421032877,-500.0,0.00012621,2]
[406988502,1772421032886,-500.0,0.00012621,2]
[406988503,1772421032895,-500.0,0.00012621,2]
[406988504,1772421032904,-500.0,0.00012621,2]
[406988505,1772421032913,-500.0,0.00012621,2]
[406988506,1772421032922,-500.0,0.00012621,2]
[406988507,1772421032932,-500.0,0.00012621,2]
[406988508,1772421032941,-500.0,0.00012621,2]
[406988509,1772421032949,-500.0,0.00012621,2]
[406988510,1772421032958,-500.0,0.00012621,2]
[406988511,1772421032967,-500.0,0.00012621,2]
[406988512,1772421032976,-500.0,0.00012621,2]
[406988513,1772421032984,-500.0,0.00012621,2]
[406988514,1772421032993,-500.0,0.00012621,2]
[406988515,1772421033002,-500.0,0.00012621,2]
[406988516,1772421033011,-512.44672658,0.00012621,2]
[406988517,1772421033019,-500.0,0.00012621,2]
[406988518,1772421033028,-300.0,0.00012621,2]
[406988519,1772421033037,-500.0,0.00012621,2]
[406988520,1772421033046,-500.0,0.00012621,2]
[406988521,1772421033055,-500.0,0.00012621,2]
[406988522,1772421033064,-500.0,0.00012621,2]
[406988523,1772421033072,-500.0,0.00012621,2]
[406988524,1772421033081,-500.0,0.00012621,2]
[406988525,1772421033090,-500.0,0.00012621,2]
[406988526,1772421033099,-500.0,0.00012621,2]
[406988527,1772421033107,-500.0,0.00012621,2]
[406988528,1772421033119,-604.56038785,0.00012621,2]
[406988529,1772421033130,-604.56038785,0.00012621,2]
[406988530,1772421033139,-604.56038785,0.00012621,2]
[406988531,1772421033148,-604.56038785,0.00012621,2]
[406988532,1772421033156,-604.56038785,0.00012621,2]
[406988533,1772421033166,-604.56038785,0.00012621,2]
[406988534,1772421033176,-604.56038785,0.00012621,2]
[406988535,1772421033184,-604.56038785,0.00012621,2]
[406988536,1772421033195,-604.56038785,0.00012621,2]
[406988537,1772421033204,-604.56038785,0.00012621,2]
[406988538,1772421033213,-604.56038785,0.00012621,2]
[406988539,1772421033222,-604.56038785,0.00012621,2]
[406988540,1772421033231,-604.56038785,0.00012621,2]
[406988541,1772421033240,-604.56038785,0.00012621,2]
[406988542,1772421033249,-604.56038785,0.00012621,2]
[406988543,1772421033258,-604.56038785,0.00012621,2]
[406988544,1772421033266,-604.56038785,0.00012621,2]
[406988545,1772421033275,-604.56038785,0.00012621,2]
[406988546,1772421033284,-604.56038785,0.00012621,2]
[406988547,1772421033293,-604.56038785,0.00012621,2]
[406988548,1772421033302,-604.56038785,0.00012621,2]
[406988549,1772421033311,-604.56038785,0.00012621,2]
[406988550,1772421033320,-604.56038785,0.00012621,2]
[406988551,1772421033329,-604.56038785,0.00012621,2]
[406988552,1772421033337,-604.56038785,0.00012621,2]
[406988553,1772421033346,-604.56038785,0.00012621,2]
[406988554,1772421033355,-604.56038785,0.00012621,2]
[406988555,1772421033364,-604.56038775,0.00012621,2]
[406988556,1772421033373,-500.0,0.00012621,2]
[406988557,1772421033382,-500.0,0.00012621,2]
[406988558,1772421033391,-500.0,0.00012621,2]
[406988559,1772421033587,-500.0,0.00012621,2]
[406988560,1772421033597,-500.0,0.00012621,2]
[406988561,1772421033606,-500.0,0.00012621,2]
[406988562,1772421033615,-500.0,0.00012621,2]
[406988563,1772421033624,-500.0,0.00012621,2]
[406988564,1772421033633,-500.0,0.00012621,2]
[406988565,1772421033642,-500.0,0.00012621,2]
[406988566,1772421033651,-500.0,0.00012621,2]
[406988567,1772421033660,-500.0,0.00012621,2]
[406988568,1772421033669,-500.0,0.00012621,2]
[406988569,1772421033678,-500.0,0.00012621,2]
[406988570,1772421033687,-500.0,0.00012621,2]
[406988571,1772421033696,-500.0,0.00012621,2]
[406988572,1772421033705,-500.0,0.00012621,2]
[406988573,1772421033714,-500.0,0.00012621,2]
[406988574,1772421033723,-402.80815289,0.00012621,2]
[406988575,1772421033733,-500.0,0.00012621,2]
[406988576,1772421033742,-500.0,0.00012621,2]
[406988577,1772421033751,-500.0,0.00012621,2]
[406988578,1772421033760,-500.0,0.00012621,2]
[406988579,1772421033768,-115.90332816,0.00012621,2]
[406988607,1772421037944,-406.56750962,0.0001262,2]